{"text_format":"1","workbook":"xlsx","n_sheets":4,"sheets":["Feuille de jeu","Carte de la Suisse","Liste des no de ville","Liste"],"not_rendered":{"charts":0,"images":33,"macros":1,"external_links":0,"defined_names":1,"comments":1,"pivot_tables":0},"unopened":[],"bounds":{"document_bytes":16777216,"sheet_cells":100000,"rows_first":2000,"rows_last":500,"rows_between":2000,"halvings":0,"cell_chars":16384,"cell_head_chars":4096},"cells_cut":0,"cells_raw":0,"read":"whole","date_system":"1900"}

{"sheet":"Feuille de jeu","index":0,"n_rows":117,"n_cols":21,"rows_kept":117,"cut":false,"hidden":false,"merged":[[48,0,48,3],[8,8,26,8],[4,9,5,9],[0,1,0,8],[5,1,5,3],[2,1,2,3],[3,1,3,3],[7,0,8,0],[1,4,1,7]]}
[null,"Villes de Suisse",null,null,null,null,null,null,null," ","nb villes",66,"x","canton",null,null,"Ville","ovale"]
[null,null,null,null,{"$f":"\"Situez sur la carte 60 villes et 6 lacs !        \"","v":"Situez sur la carte 60 villes et 6 lacs !        "},null,null,null,null,null,1,"Genève",null,8,null,1,"Aarau",56,36]
[null,{"$f":"IF(O18=0,\"Cliquez sur nouvelle partie\",IF(G4=1,\"Partie terminée !\",\"Cliquez sur \"))","v":"Cliquez sur "},null,null,null,null,null,null,null,null,2,"Nyon",null,23,"Indice :",2,"Altdorf",75,49]
[null,"Question",null,null,66,{"$f":"VLOOKUP(E4,K2:N68,4)","v":27},0,{"$f":"IF(O4=TRUE,F4,27)","v":27},null,null,3,"Morges",null,23,true,3,"Appenzell",85,58]
[null,null,null,null,null,null,null,null,null,{"$f":"IF(O11=0,\"Choisir une ville de la liste ci-dessous\",\"Voir le no  \"&O12)","v":"Choisir une ville de la liste ci-dessous"},4,"Lausanne",null,23,"Voir ville :",4,"Baden",57,37]
[{"$f":"IF(O24=1,\"X\",\"\")","v":""},null,null,null,null,null,null,null,null,null,5,"Vevey",null,23,55,5,"Basel",53,33]
[{"$f":"IF(A6=\"X\",\"déjà répondu !\",\"\")","v":""},null,null,null,null,null,null,null,null,null,6,"Monthey",null,24,null,6,"Bellinzona",31,11]
[{"$f":"IF(O24=1,\"→\",\"\")","v":""},null,null,null,null,null,null,null,null,null,7,"Martigny",null,24,"Concan.",7,"Bern",42,22]
[null,null,null,null,null,null,null,null,null,null,8,"Sion",null,24,{"$f":"VLOOKUP(O6,P2:R61,3)","v":67},8,"Bienne",47,27]
[null,null,null,null,null,null,null,null,null,null,9,"Brig",null,24,{"$f":"\"Oval \"&O9","v":"Oval 67"},9,"Brig",29,9]
[null,"Score :",null,null,null,null,null,null,null,null,10,"Locarno",null,20,0,10,"Buchs",50,30]
[null," 0 / 0",null,null,null,null,null,null,null,null,11,"Bellinzona",null,20,{"$f":"VLOOKUP(O6,P2:S61,4)","v":47},11,"Bulle",37,17]
[null,{"$f":"IF(G4=1,\"    Bravo !\",\"\")","v":""},null,null,null,null,null,null,null,null,12,"Lugano",null,20,null,12,"Chiasso",33,13]
[null,{"$f":"IF(G4=1,\" Partie terminée\",\"\")","v":""},null,null,null,null,null,null,null,null,13,"Chiasso",null,20,"nb tirs",13,"Chur (Coire)",45,25]
[null,{"$f":"IF(G4=1,\"Affichez vos résultats avec\",\"\")","v":""},null,null,null,null,null,null,null,null,14,"Le Sentier",null,23,0,14,"Delémont",52,32]
[null,{"$f":"IF(G4=1,\"le bouton ci-dessous !\",\"\")","v":""},null,null,null,null,null,null,null,null,15,"Yverdon",null,23,null,15,"Dietikon",59,39]
[null,null,null,null,null,null,null,null,null,null,16,"Payerne",null,23,"Nouv. par.",16,"Frauenfeld",1,46]
[null,null,null,null,null,null,null,null,null,null,17,"Bulle",null,7,1,17,"Fribourg",41,21]
[null,null,null,null,null,null,null,null,null,null,18,"La Chaux-de-Fonds",null,13,null,18,"Genève",4,1]
[null,null,null,null,null,null,null,null,null,null,19,"Neuchâtel",null,13,"1 réponse",19,"Glaris",82,55]
[null,null,null,null,null,null,null,null,null,null,20,"Murten (Morat)",null,7,true,20,"Gstaad",79,53,null,"Ville"]
[null,null,null,null,null,null,null,null,null,null,21,"Fribourg",null,7,null,21,"Interlaken",76,50,null,{"$f":"E4","v":66}]
[null,null,null,null,null,null,null,null,null,null,22,"Bern",null,6,"flèche",22,"Kreuzlinger",78,52,null,"Canton"]
[null,null,null,null,null,null,null,null,null,null,23,"Thun",null,6,0,23,"La Chaux-de-Fonds",38,18,null,{"$f":"VLOOKUP(U22,K2:N68,4)","v":27}]
[null,null,null,null,null,null,null,null,null,null,24,"Luzern",null,12,null,24,"Langenthal",80,54]
[null,null,null,null,null,null,null,null,null,null,25,"Chur (Coire)",null,10,null,25,"Lausanne",22,4]
[null,null,null,null,null,null,null,null,null,null,26,"Tramelan",null,6,null,26,"Le Sentier",34,14]
[null,null,"min.","max.",null,null,null,null,{"$f":"IF(U24=27,\"\",IF(O4=TRUE,VLOOKUP(U24,'Liste des no de ville'!B10:C36,2),\"\"))","v":""},null,27,"Bienne",null,6,null,27,"Liestal",54,34,null,"Nb tirages"]
[null,null,1,66,{"$f":"IF(O15=0,\"← ← Ici, choix d'une série limitée. (max. 66)\",\"\")","v":"← ← Ici, choix d'une série limitée. (max. 66)"},null,null,null,null,null,28,"Solothurn",null,18,null,28,"Locarno",30,10,null,{"$f":"D29-C29+1","v":66}]
[1,null,null,{"$f":"IF(C29>D29,\"Pas possible ! Maximum plus petit que minimum\",\"\")","v":""},null,null,null,null,null,null,29,"Zug",null,25,null,29,"Lugano",32,12]
[null,null,null,null,null,null,null,null,null,null,30,"Buchs",null,19,null,30,"Luzern",44,24]
[null,null,null,null,null,null,null,null,null,null,31,"Porrentruy",null,11,null,31,"Martigny",27,7]
[null,null,null,null,null,null,null,null,null,null,32,"Delémont",null,11,null,32,"Monthey",26,6]
[null,null,null,null,null,null,null,null,null,null,33,"Basel",null,5,null,33,"Morges",20,3]
[null,null,null,null,null,null,null,null,null,null,34,"Liestal",null,4,null,34,"Murten (Morat)",40,20]
[null,null,null,null,null,null,null,null,null,null,35,"Olten",null,18,null,35,"Neuchâtel",39,19]
[null,null,null,null,null,null,null,null,null,null,36,"Aarau",null,1,null,36,"Nyon",21,2]
[null,"Version 1.8",null,null,null,null,null,null,null,null,37,"Baden",null,1,null,37,"Oerlikon",61,41]
[null,"© Yvan Péguiron – infodidac.ch – mars 2024",null,null,null,null,null,null,null,null,38,"Wohlen",null,1,null,38,"Olten",55,35]
[null,null,null,null,null,null,null,null,null,null,39,"Dietikon",null,26,null,39,"Payerne",36,16]
[null,"PS : Les 60 villes du quiz ont été choisies pour leur intérêt politique ou géographique.",null,null,null,null,null,null,null,null,40,"Schaffhausen",null,16,null,40,"Porrentruy",51,31]
[null,null,null,null,null,null,null,null,null,null,41,"Oerlikon",null,26,null,41,"Rapperswil",65,45]
[null,null,null,null,null,null,null,null,null,null,42,"Zürich",null,26,null,42,"Sarnen",84,57]
[null,null,null,null,null,null,null,null,null,null,43,"Uster",null,26,null,43,"Schaffhausen",60,40]
[null,null,null,null,null,null,null,null,null,null,44,"Winterthur",null,26,null,44,"Schwyz",83,56]
[null,null,null,null,null,null,null,null,null,null,45,"Rapperswil",null,19,null,45,"Sempach",87,59]
[null,null,null,null,null,null,null,null,null,null,46,"Frauenfeld",null,21,null,46,"Sion",28,8]
[null,null,null,null,null,null,null,null,null,null,47,"Wil",null,19,null,47,"Solothurn",48,28]
["Liste des questions et réponses",null,null,null,"  Retour ",null,null,null,null,null,48,"St-Gallen",null,19,null,48,"Stans",77,51]
[null,null,null,null,null,null,null,null,null,null,49,"Altdorf",null,22,null,49,"St-Gallen",68,48,null,"Rép. v = 1"]
[1,null,{"$f":"IF(B51=\"\",\"\",IF(U51=1,\"v\",\"Pas trouvé !\"))","v":""},null,null,null,null,null,null,null,50,"Interlaken",null,6,null,50,"St-Moritz",86,60]
[2,null,{"$f":"IF(B52=\"\",\"\",IF(U52=1,\"v\",\"Pas trouvé !\"))","v":""},null,null,null,null,null,null,null,51,"Stans",null,14,null,51,"Thun",43,23]
[3,null,"",null,null,null,null,null,null,null,52,"Kreuzlinger",null,21,null,52,"Tramelan",46,26]
[4,null,"",null,null,null,null,null,null,null,53,"Gstaad",null,6,null,53,"Uster",63,43]
[5,null,"",null,null,null,null,null,null,null,54,"Langenthal",null,6,null,54,"Vevey",25,5]
[6,null,"",null,null,null,null,null,null,null,55,"Glaris",null,9,null,55,"Wil",67,47]
[7,null,"",null,null,null,null,null,null,null,56,"Schwyz",null,17,null,56,"Winterthur",64,44]
[8,null,"",null,null,null,null,null,null,null,57,"Sarnen",null,15,null,57,"Wohlen",58,38]
[9,null,"",null,null,null,null,null,null,null,58,"Appenzell",null,3,null,58,"Yverdon",35,15]
[10,null,"",null,null,null,null,null,null,null,59,"Sempach",null,12,null,59,"Zug",49,29]
[11,null,"",null,null,null,null,null,null,null,60,"St. Moritz",null,10,null,60,"Zürich",62,42]
[12,null,"",null,null,null,null,null,null,null,61,"Lac des 4 cantons",null,27]
[13,null,"",null,null,null,null,null,null,null,62,"Lac de Thune",null,27]
[14,null,"",null,"  Retour ",null,null,null,null,null,63,"Lac de Walenstadt",null,27]
[15,null,"",null,null,null,null,null,null,null,64,"Lac de Brienz",null,27]
[16,null,"",null,null,null,null,null,null,null,65,"Lac Majeur",null,27]
[17,null,"",null,null,null,null,null,null,null,66,"Lac de Morat",null,27]
[18,null,"",null,null,null,null,null,null,null,67,"Suisse",null,27]
[19,null,""]
[20,null,""]
[21,null,""]
[22,null,""]
[23,null,""]
[24,null,""]
[25,null,""]
[26,null,""]
[27,null,""]
[28,null,""]
[29,null,"",null,"  Retour "]
[30,null,""]
[31,null,""]
[32,null,""]
[33,null,""]
[34,null,""]
[35,null,""]
[36,null,""]
[37,null,""]
[38,null,""]
[39,null,""]
[40,null,""]
[41,null,""]
[42,null,""]
[43,null,""]
[44,null,"",null,"  Retour "]
[45,null,""]
[46,null,""]
[47,null,""]
[48,null,""]
[49,null,""]
[50,null,""]
[51,null,""]
[52,null,""]
[53,null,""]
[54,null,""]
[55,null,""]
[56,null,""]
[57,null,""]
[58,null,""]
[59,null,"",null,"  Retour "]
[60,null,""]
[61,null,""]
[62,null,""]
[63,null,""]
[64,null,""]
[65,null,""]
[66,null,{"$f":"IF(B116=\"\",\"\",IF(U116=1,\"v\",\"Pas trouvé !\"))","v":""}]
[null,null,""]

{"sheet":"Carte de la Suisse","index":1,"n_rows":0,"n_cols":0,"rows_kept":0,"cut":false,"hidden":false,"merged":[]}

{"sheet":"Liste des no de ville","index":2,"n_rows":102,"n_cols":29,"rows_kept":102,"cut":false,"hidden":false,"merged":[]}
[]
[null,1,2,3,4,5,6,7,8,9,10,11,12,13,14,15,16,17,18,19,20,21,22,23,24,25,26,27,28]
[]
[]
[null,"Argovie","Appenzell Rhodes-Extérieures","Appenzell Rhodes-Intérieures","Bâle-Campagne","Bâle-Ville","Berne","Fribourg","Genève","Glaris","Grisons","Jura","Lucerne","Neuchâtel","Nidwald","Obwald","Schaffhouse","Schwytz","Soleure","Saint-Gall","Tessin","Thurgovie","Uri","Vaud","Valais","Zoug","Zurich"]
[]
[]
[null,null,"26 cantons",null,"60 villes",null,null,null,"6 lacs"]
[]
[null,1,"Argovie",1,"Genève",31,"Porrentruy",61,"Lac des 4 cantons"]
[null,2,"Appenzell Rhodes-Extérieures",2,"Nyon",32,"Delémont",62,"Lac de Thune"]
[null,3,"Appenzell Rhodes-Intérieures",3,"Morges",33,"Basel",63,"Lac de Walenstadt"]
[null,4,"Bâle-Campagne",4,"Lausanne",34,"Liestal",64,"Lac de Brienz"]
[null,5,"Bâle-Ville",5,"Vevey",35,"Olten",65,"Lac Majeur"]
[null,6,"Berne",6,"Monthey",36,"Aarau",66,"Lac de Morat"]
[null,7,"Fribourg",7,"Martigny",37,"Baden"]
[null,8,"Genève",8,"Sion",38,"Wohlen"]
[null,9,"Glaris",9,"Brig",39,"Dietikon"]
[null,10,"Grisons",10,"Locarno",40,"Schaffhausen"]
[null,11,"Jura",11,"Bellinzona",41,"Oerlikon"]
[null,12,"Lucerne",12,"Lugano",42,"Zürich"]
[null,13,"Neuchâtel",13,"Chiasso",43,"Uster"]
[null,14,"Nidwald",14,"Le Sentier",44,"Winterthur"]
[null,15,"Obwald",15,"Yverdon",45,"Rapperswil"]
[null,16,"Schaffhouse",16,"Payerne",46,"Frauenfeld"]
[null,17,"Schwytz",17,"Bulle",47,"Wil"]
[null,18,"Soleure",18,"La Chaux-de-Fonds",48,"St-Gallen"]
[null,19,"Saint-Gall",19,"Neuchâtel",49,"Altdorf"]
[null,20,"Tessin",20,"Murten (Morat)",50,"Interlaken"]
[null,21,"Thurgovie",21,"Fribourg",51,"Stans"]
[null,22,"Uri",22,"Bern",52,"Kreuzlinger"]
[null,23,"Vaud",23,"Thun",53,"Gstaad"]
[null,24,"Valais",24,"Luzern",54,"Langenthal"]
[null,25,"Zoug",25,"Chur (Coire)",55,"Glaris"]
[null,26,"Zurich",26,"Tramelan",56,"Schwyz"]
[null,27,"Suisse",27,"Bienne",57,"Sarnen"]
[null,null,null,28,"Solothurn",58,"Appenzell"]
[null,null,null,29,"Zug",59,"Sempach"]
[null,null,null,30,"Buchs",60,"St. Moritz"]
[]
["Liste des villes du quiz par nombre d'habitants (2022)",null,null,null,"Liste alphabétique"]
["Rang","Ville","Nb. Habitants"]
[1,"Zurich",421878,null,"Aarau"]
[2,"Genève",203856,null,"Altdorf"]
[3,"Bâle",173863,null,"Appenzell"]
[4,"Lausanne",140202,null,"Baden"]
[5,"Berne",134794,null,"Basel"]
[6,"Winterthour",114220,null,"Bellinzona"]
[7,"Lucerne",82620,null,"Bern"]
[8,"Saint-Gall",76213,null,"Bienne"]
[9,"Lugano",62315,null,"Brig"]
[10,"Bienne",55206,null,"Buchs"]
[11,"Neuchâtel",44531,null,"Bulle"]
[12,"Thoune",43476,null,"Chiasso"]
[13,"Bellinzone",43360,null,"Chur (Coire)"]
[15,"Fribourg",38039,null,"Delémont"]
[16,"Coire",37424,null,"Dietikon"]
[17,"Schaffhouse",36952,null,"Frauenfeld"]
[18,"La Chaux-de-Fonds",36915,null,"Fribourg"]
[19,"Uster",35337,null,"Genève"]
[20,"Sion",34978,null,"Glaris"]
[24,"Zoug",30934,null,"Gstaad"]
[25,"Yverdon-les-Bains",29955,null,"Interlaken"]
[28,"Dietikon",28057,null,"Kreuzlinger"]
[29,"Rapperswil",27483,null,"La Chaux-de-Fonds"]
[32,"Frauenfeld",25974,null,"Langenthal"]
[36,"Bulle",24412,null,"Lausanne"]
[37,"Wil",24132,null,"Le Sentier"]
[40,"Kreuzlingen",22390,null,"Liestal"]
[42,"Aarau",21726,null,"Locarno"]
[43,"Nyon",21718,null,"Lugano"]
[45,"Oerlikon (Quartier de Zurich)",21658,null,"Luzern"]
[50,"Martigny",20276,null,"Martigny"]
[52,"Vevey",19752,null,"Monthey"]
[53,"Baden",19621,null,"Morges"]
[61,"Olten",18496,null,"Murten (Morat)"]
[65,"Monthey",17820,null,"Neuchâtel"]
[71,"Wohlen",16881,null,"Nyon"]
[73,"Soleure",16802,null,"Oerlikon"]
[78,"Morges",16101,null,"Olten"]
[80,"Langenthal",15959,null,"Payerne"]
[83,"Locarno",15728,null,"Porrentruy"]
[85,"Schwytz",15435,null,"Rapperswil"]
[90,"Liestal",14769,null,"Sarnen"]
[103,"Brig",13221,null,"Schaffhausen"]
[106,"Buchs",13053,null,"Schwyz"]
[111,"Delémont",12618,null,"Sempach"]
[112,"Glaris",12539,null,"Sion"]
[142,"Sarnen",10514,null,"Solothurn"]
[151,"Payerne",10069,null,"St. Moritz"]
[155,"Altdorf",9565,null,"Stans"]
[159,"Morat",8244,null,"St-Gallen"]
[160,"Stans",8171,null,"Thun"]
[162,"Chiasso",7581,null,"Tramelan"]
[164,"Porrentry",6434,null,"Uster"]
[166,"Appenzell",5793,null,"Vevey"]
[167,"Interlaken",5719,null,"Wil"]
[168,"Saint-Moritz",4945,null,"Winterthur"]
["?","Tramelan",4500,null,"Wohlen"]
["?","Sempach",4000,null,"Yverdon"]
["?","Gstaad",3500,null,"Zug"]
["?","Le Sentier",2000,null,"Zürich"]

{"sheet":"Liste","index":3,"n_rows":0,"n_cols":0,"rows_kept":0,"cut":false,"hidden":false,"merged":[]}